fUST/lending_fUST_20240817
["ID","MTS","AMOUNT","RATE_DAILY","PERIOD"]
[335157845,1723891872666,-500.0,0.00025753,2]
[335157846,1723891872716,-604.91,0.00026027,2]
[335157847,1723891872765,-512.00209662,0.00026027,2]
[335157848,1723891872815,-633.13,0.00026027,2]
[335157849,1723891872862,-500.0,0.00026027,2]
[335157850,1723891872915,-500.0,0.00026027,2]
[335157851,1723891872963,-604.59,0.00026027,2]
[335157852,1723891873011,-500.0,0.00026027,2]
[335157853,1723891873061,-500.0,0.00026027,2]
[335157854,1723891873113,-500.0,0.00026027,2]
[335157855,1723891873167,-500.0,0.00026027,2]
[335157856,1723891873221,-611.55,0.00026027,2]
[335157857,1723891873274,-500.0,0.00026027,2]
[335157858,1723891873326,-500.0,0.00026027,2]
[335157859,1723891873379,-500.0,0.00026027,2]
[335157860,1723891873436,-500.0,0.00026027,2]
[335157861,1723891873493,-724.68,0.00026027,2]
[335157862,1723891873549,-911.63,0.00026027,2]
[335157863,1723891873604,-382.86047812,0.00026027,2]
[335157864,1723891873659,-500.0,0.00026027,2]
[335157865,1723891873711,-500.0,0.00026027,2]
[335157866,1723891873765,-646.63,0.00026027,2]
[335157867,1723891873821,-500.0,0.00026027,2]
[335157868,1723891873872,-500.0,0.00026027,2]
[335157869,1723891873921,-500.0,0.00026027,2]
[335157870,1723891873970,-1042.81,0.00026027,2]
[335157871,1723891874021,-670.26,0.00026027,2]
[335157872,1723891874073,-500.0,0.00026027,2]
[335157873,1723891874126,-500.0,0.00026027,2]
[335157874,1723891874177,-177.62949332,0.00026027,2]
[335157875,1723891874228,-638.63,0.00026027,2]
[335157876,1723891874279,-500.0,0.00026027,2]
[335157877,1723891874332,-500.0,0.00026027,2]
[335157878,1723891874385,-571.46,0.00026027,2]
[335157879,1723891874442,-500.0,0.00026027,2]
[335157880,1723891874500,-578.52,0.00026027,2]
[335157881,1723891874552,-500.0,0.00026027,2]
[335157882,1723891874604,-583.41,0.00026027,2]
[335157883,1723891874657,-500.0,0.00026027,2]
[335157884,1723891874709,-500.0,0.00026027,2]
[335157885,1723891874762,-500.0,0.00026027,2]
[335157886,1723891874816,-707.23,0.00026027,2]
[335157887,1723891874870,-500.0,0.00026027,2]
[335157888,1723891874919,-773.58,0.00026027,2]
[335157889,1723891874969,-599.59046264,0.00026027,2]
[335157890,1723891875025,-500.0,0.00026027,2]
[335157891,1723891875079,-784.78,0.00026027,2]
[335157892,1723891875131,-584.85,0.00026027,2]
[335157893,1723891875184,-500.0,0.00026027,2]
[335157894,1723891875239,-761.31,0.00026027,2]
[335157895,1723891875289,-1569.98,0.00026027,2]
[335157896,1723891875342,-749.17,0.00026027,2]
[335157897,1723891875393,-778.0,0.00026027,2]
[335157898,1723891875445,-785.89,0.00026027,2]
[335157899,1723891875502,-500.0,0.00026027,2]
[335157900,1723891875557,-725.67,0.00026027,2]
[335157901,1723891875605,-868.08,0.00026027,2]
[335157902,1723891875659,-665.87,0.00026027,2]
[335157903,1723891875713,-500.0,0.00026027,2]
[335157904,1723891875764,-1195.7,0.00026027,2]
[335157905,1723891875813,-500.0,0.00026027,2]
[335157906,1723891875874,-2598.01,0.00026027,2]
[335157907,1723891875924,-555.50113678,0.00026027,2]
[335157908,1723891875973,-883.66,0.00026027,2]
[335157909,1723891876022,-742.63,0.00026027,2]
[335157910,1723891876074,-500.0,0.00026027,2]
[335157911,1723891876126,-500.0,0.00026027,2]
[335157912,1723891876174,-641.94,0.00026027,2]
[335157913,1723891876219,-641.08,0.00026027,2]
[335157914,1723891876271,-580.43,0.00026027,2]
[335157915,1723891876321,-500.0,0.00026027,2]
[335157916,1723891876378,-163.5431607,0.00026027,2]
[335157917,1723891876428,-500.0,0.00026027,2]
[335157918,1723891876479,-500.0,0.00026027,2]
[335157919,1723891876537,-500.0,0.00026027,2]
[335157920,1723891876587,-500.0,0.00026027,2]
[335157921,1723891876638,-500.0,0.00026027,2]
[335157922,1723891876690,-2188.21,0.00026027,2]
[335157923,1723891876841,-500.0,0.00026027,2]
[335157924,1723891876915,-578.95700651,0.00026027,2]
[335157925,1723891876967,-500.0,0.00026027,2]
[335157926,1723891877028,-500.0,0.00026027,2]
[335157927,1723891877081,-799.81,0.00026027,2]
[335157928,1723891877134,-500.0,0.00026027,2]
[335157929,1723891877186,-500.0,0.00026027,2]
[335157930,1723891877240,-740.01,0.00026027,2]
[335157931,1723891877291,-500.0,0.00026027,2]
[335157932,1723891877341,-604.91,0.00026301,2]
[335157933,1723891877396,-633.13,0.00026301,2]
[335157934,1723891877453,-446.06,0.00026301,2]
[335157935,1723891877507,-500.0,0.00026301,2]
[335157936,1723891877557,-604.59,0.00026301,2]
[335157937,1723891877609,-500.0,0.00026301,2]
[335157938,1723891877666,-500.0,0.00026301,2]
[335157939,1723891877721,-500.0,0.00026301,2]
[335157940,1723891877774,-570.43162968,0.00026301,2]
[335157941,1723891877825,-611.55,0.00026301,2]
[335157942,1723891877878,-500.0,0.00026301,2]
[335157943,1723891877930,-500.0,0.00026301,2]
[335157944,1723891877980,-500.0,0.00026301,2]
[335157945,1723891878029,-500.0,0.00026301,2]
[335157946,1723891878081,-724.68,0.00026301,2]
[335157947,1723891878130,-911.63,0.00026301,2]
[335157948,1723891878183,-308.05765658,0.00026301,2]
[335157949,1723891878239,-500.0,0.00026301,2]
[335157950,1723891878293,-646.63,0.00026301,2]
[335157951,1723891878346,-500.0,0.00026301,2]
[335157952,1723891878398,-500.0,0.00026301,2]
[335157953,1723891878451,-500.0,0.00026301,2]
[335157954,1723891878507,-1042.81,0.00026301,2]
[335157955,1723891878560,-670.26,0.00026301,2]
[335157956,1723891878615,-500.0,0.00026301,2]
[335157957,1723891878668,-500.0,0.00026301,2]
[335157958,1723891878721,-638.63,0.00026301,2]
[335157959,1723891878771,-500.0,0.00026301,2]
[335157960,1723891878824,-500.0,0.00026301,2]
[335157961,1723891878881,-571.46,0.00026301,2]
[335157962,1723891878934,-500.0,0.00026301,2]
[335157963,1723891878992,-578.52,0.00026301,2]
[335157964,1723891879042,-500.0,0.00026301,2]
[335157965,1723891879092,-583.41,0.00026301,2]
[335157966,1723891879145,-500.0,0.00026301,2]
[335157967,1723891879197,-500.0,0.00026301,2]
[335157968,1723891879250,-500.0,0.00026301,2]
[335157969,1723891879303,-707.23,0.00026301,2]
[335157970,1723891879357,-500.0,0.00026301,2]
[335157971,1723891879411,-773.58,0.00026301,2]
[335157972,1723891879463,-500.0,0.00026301,2]
[335157973,1723891879519,-784.78,0.00026301,2]
[335157974,1723891879579,-584.85,0.00026301,2]
[335157975,1723891879641,-337.92094845,0.00026301,2]
[335157976,1723891879694,-761.31,0.00026301,2]
[335157977,1723891879746,-1569.98,0.00026301,2]
[335157978,1723891879795,-749.17,0.00026301,2]
[335157979,1723891879845,-778.0,0.00026301,2]
[335157980,1723891879895,-785.89,0.00026301,2]
[335157981,1723891879952,-500.0,0.00026301,2]
[335157982,1723891880005,-725.67,0.00026301,2]
[335157983,1723891880058,-868.08,0.00026301,2]
[335157984,1723891880110,-665.87,0.00026301,2]
[335157985,1723891880161,-557.52997617,0.00026301,2]
[335157986,1723891880212,-1195.7,0.00026301,2]
[335157987,1723891880267,-500.0,0.00026301,2]
[335157988,1723891880322,-2598.01,0.00026301,2]
[335157989,1723891880375,-883.66,0.00026301,2]
[335157990,1723891880428,-742.63,0.00026301,2]
[335157991,1723891880481,-500.0,0.00026301,2]
[335157992,1723891880533,-630.65,0.00026301,2]
[335157993,1723891880586,-641.94,0.00026301,2]
[335157994,1723891880637,-641.08,0.00026301,2]
[335157995,1723891880686,-580.43,0.00026301,2]
[335157996,1723891880737,-321.8330387,0.00026301,2]
[335157997,1723891880786,-500.0,0.00026301,2]
[335157998,1723891880839,-500.0,0.00026301,2]
[335157999,1723891880890,-500.0,0.00026301,2]
[335158000,1723891880939,-500.0,0.00026301,2]
[335158001,1723891880992,-500.0,0.00026301,2]
[335158002,1723891881043,-2188.21,0.00026301,2]
[335158003,1723891881091,-500.0,0.00026301,2]
[335158004,1723891881144,-500.0,0.00026301,2]
[335158005,1723891881196,-500.0,0.00026301,2]
[335158006,1723891881249,-799.81,0.00026301,2]
[335158007,1723891881297,-500.0,0.00026301,2]
[335158008,1723891881348,-500.0,0.00026301,2]
[335158009,1723891881397,-740.01,0.00026301,2]
[335158010,1723891881446,-604.91,0.00026575,2]
[335158011,1723891881500,-633.13,0.00026575,2]
[335158012,1723891881550,-212.80174851,0.00026575,2]
[335158013,1723891881596,-604.59,0.00026575,2]
[335158014,1723891881641,-500.0,0.00026575,2]
[335158015,1723891881688,-500.0,0.00026575,2]
[335158016,1723891881735,-630.67065845,0.00026575,2]
[335158017,1723891881786,-611.55,0.00026575,2]
[335158018,1723891881837,-500.0,0.00026575,2]
[335158019,1723891881888,-540.19636547,0.00026575,2]
[335158020,1723891881942,-500.0,0.00026575,2]
[335158021,1723891881991,-567.23303905,0.00026575,2]
[335158022,1723891882043,-724.68,0.00026575,2]
[335158023,1723891882096,-911.63,0.00026575,2]
[335158024,1723891882148,-500.0,0.00026575,2]
[335158025,1723891882199,-646.63,0.00026575,2]
[335158026,1723891882249,-500.0,0.00026575,2]
[335158027,1723891882304,-500.0,0.00026575,2]
[335158028,1723891882357,-500.0,0.00026575,2]
[335158029,1723891882408,-1042.81,0.00026575,2]
[335158030,1723891882461,-670.26,0.00026575,2]
[335158031,1723891882508,-500.0,0.00026575,2]
[335158032,1723891882556,-500.0,0.00026575,2]
[335158033,1723891882603,-638.63,0.00026575,2]
[335158034,1723891882648,-500.0,0.00026575,2]
[335158035,1723891882697,-500.0,0.00026575,2]
[335158036,1723891882745,-571.46,0.00026575,2]
[335158037,1723891882794,-500.0,0.00026575,2]
[335158038,1723891882842,-578.52,0.00026575,2]
[335158039,1723891882890,-500.0,0.00026575,2]
[335158040,1723891882941,-583.41,0.00026575,2]
[335158041,1723891882989,-500.0,0.00026575,2]
[335158042,1723891883038,-500.0,0.00026575,2]
[335158043,1723891883086,-500.0,0.00026575,2]
[335158044,1723891883136,-707.23,0.00026575,2]
[335158045,1723891883190,-500.0,0.00026575,2]
[335158046,1723891883248,-773.58,0.00026575,2]
[335158047,1723891883303,-500.0,0.00026575,2]
[335158048,1723891883358,-784.78,0.00026575,2]
[335158049,1723891883412,-584.85,0.00026575,2]
[335158050,1723891883465,-761.31,0.00026575,2]
[335158051,1723891883517,-1569.98,0.00026575,2]
[335158052,1723891883570,-749.17,0.00026575,2]
[335158053,1723891883629,-778.0,0.00026575,2]
[335158054,1723891883682,-785.89,0.00026575,2]
[335158055,1723891883878,-500.0,0.00026575,2]
[335158056,1723891883930,-725.67,0.00026575,2]
[335158057,1723891883982,-868.08,0.00026575,2]
[335158058,1723891884033,-665.87,0.00026575,2]
[335158059,1723891884084,-1195.7,0.00026575,2]
[335158060,1723891884136,-500.0,0.00026575,2]
[335158061,1723891884187,-2598.01,0.00026575,2]
[335158062,1723891884237,-883.66,0.00026575,2]
[335158063,1723891884285,-742.63,0.00026575,2]
[335158064,1723891884333,-500.0,0.00026575,2]
[335158065,1723891884382,-641.94,0.00026575,2]
[335158066,1723891884430,-641.08,0.00026575,2]
[335158067,1723891884480,-580.43,0.00026575,2]
[335158068,1723891884529,-500.0,0.00026575,2]
[335158069,1723891884581,-226.66202078,0.00026575,2]
[335158070,1723891884630,-500.0,0.00026575,2]
[335158071,1723891884678,-500.0,0.00026575,2]
[335158072,1723891884727,-500.0,0.00026575,2]
[335158073,1723891884775,-2188.21,0.00026575,2]
[335158074,1723891884821,-500.0,0.00026575,2]
[335158075,1723891884870,-500.0,0.00026575,2]
[335158076,1723891884919,-202.81403197,0.00026575,2]
[335158077,1723891884967,-799.81,0.00026575,2]
[335158078,1723891885014,-500.0,0.00026575,2]
[335158079,1723891885062,-500.0,0.00026575,2]
[335158080,1723891885115,-740.01,0.00026575,2]
[335158081,1723891885164,-500.0,0.00026699,2]
[335158082,1723891885217,-400.0,0.00026842,2]
[335158083,1723891885268,-604.91,0.00026849,2]
[335158084,1723891885318,-633.13,0.00026849,2]
[335158085,1723891885368,-604.59,0.00026849,2]
[335158086,1723891885418,-644.37119595,0.00026849,2]
[335158087,1723891885468,-404.88367763,0.00026849,2]
[335158088,1723891885517,-611.55,0.00026849,2]
[335158089,1723891885568,-500.0,0.00026849,2]
[335158090,1723891885621,-500.0,0.00026849,2]
[335158091,1723891885672,-724.68,0.00026849,2]
[335158092,1723891885722,-911.63,0.00026849,2]
[335158093,1723891885773,-500.0,0.00026849,2]
[335158094,1723891885826,-646.63,0.00026849,2]
[335158095,1723891885881,-626.81885516,0.00026849,2]
[335158096,1723891885935,-500.0,0.00026849,2]
[335158097,1723891885986,-500.0,0.00026849,2]
[335158098,1723891886037,-1042.81,0.00026849,2]
[335158099,1723891886090,-670.26,0.00026849,2]
[335158100,1723891886143,-500.0,0.00026849,2]
[335158101,1723891886192,-500.0,0.00026849,2]
[335158102,1723891886242,-638.63,0.00026849,2]
[335158103,1723891886292,-506.74618968,0.00026849,2]
[335158104,1723891886345,-249.96761361,0.00026849,2]
[335158105,1723891886395,-571.46,0.00026849,2]
[335158106,1723891886445,-522.94438254,0.00026849,2]
[335158107,1723891886499,-578.52,0.00026849,2]
[335158108,1723891886549,-500.0,0.00026849,2]
[335158109,1723891886599,-583.41,0.00026849,2]
[335158110,1723891886648,-500.0,0.00026849,2]
[335158111,1723891886700,-500.0,0.00026849,2]
[335158112,1723891886751,-500.0,0.00026849,2]
[335158113,1723891886804,-707.23,0.00026849,2]
[335158114,1723891886856,-500.0,0.00026849,2]
[335158115,1723891886909,-773.58,0.00026849,2]
[335158116,1723891886964,-500.0,0.00026849,2]
[335158117,1723891887018,-784.78,0.00026849,2]
[335158118,1723891887073,-584.85,0.00026849,2]
[335158119,1723891887131,-761.31,0.00026849,2]
[335158120,1723891887191,-1569.98,0.00026849,2]
[335158121,1723891887243,-749.17,0.00026849,2]
[335158122,1723891887299,-778.0,0.00026849,2]
[335158123,1723891887354,-785.89,0.00026849,2]
[335158124,1723891887406,-500.0,0.00026849,2]
[335158125,1723891887463,-725.67,0.00026849,2]
[335158126,1723891887524,-868.08,0.00026849,2]
[335158127,1723891887576,-665.87,0.00026849,2]
[335158128,1723891887624,-1195.7,0.00026849,2]
[335158129,1723891887669,-500.0,0.00026849,2]
[335158130,1723891887720,-2598.01,0.00026849,2]
[335158131,1723891887776,-883.66,0.00026849,2]
[335158132,1723891887826,-742.63,0.00026849,2]
[335158133,1723891887875,-500.0,0.00026849,2]
[335158134,1723891887923,-641.94,0.00026849,2]
[335158135,1723891887970,-641.08,0.00026849,2]
[335158136,1723891888024,-580.43,0.00026849,2]
[335158137,1723891888073,-500.0,0.00026849,2]
[335158138,1723891888126,-299.00024654,0.00026849,2]
[335158139,1723891888182,-500.0,0.00026849,2]
[335158140,1723891888233,-501.96387085,0.00026849,2]
[335158141,1723891888287,-2188.21,0.00026849,2]
[335158142,1723891888349,-500.0,0.00026849,2]
[335158143,1723891888400,-604.31873114,0.00026849,2]
[335158144,1723891888456,-799.81,0.00026849,2]
[335158145,1723891888510,-500.0,0.00026849,2]
[335158146,1723891888562,-629.98672805,0.00026849,2]
[335158147,1723891888612,-740.01,0.00026849,2]
[335158148,1723891888660,-174.5566945,0.00026999,2]
[335158149,1723891888706,-518262.5244984,0.00027122,2]
[335158150,1723891889531,-288.31373539,0.00021917,2]
[335158151,1723891889937,-211.68626461,0.00021917,2]
[335158152,1723891889949,-219.33030919,0.00022191,2]
[335158153,1723891889960,-160.78322974,0.00024875,2]
[335158154,1723891889972,-500.0,0.00026301,2]
[335158155,1723891889984,-466.06089618,0.00026566,2]
[335158156,1723891889995,-586.43555199,0.00026575,2]
[335158157,1723891890005,-1859.64566642,0.00027122,2]
[335158158,1723891890016,-611302.02244831,0.00027122,2]
[335158159,1723891890155,-561821.55859129,0.00027122,2]
[335158160,1723891933051,-11419.296548,0.00027122,2]
[335158161,1723891933140,-277.59237245,0.00024814,2]
[335158162,1723891933151,-154.71377951,0.00024847,2]
[335158163,1723891933160,-638.60977079,0.0002589,120]
[335158164,1723891933170,-3757.89808898,0.00027122,2]
[335158165,1723891933185,-333.3986771,0.00027122,2]
[335158166,1723891934313,260.29649474,9.9e-05,2]
[335158167,1723891934336,13.07686757,9.9e-05,2]
[335158168,1723891934532,-500.0,0.00021917,2]
[335158169,1723891934590,-500.0,0.00021917,2]
[335158170,1723891934642,-500.0,0.00021917,2]
[335158171,1723891934693,-500.0,0.00021917,2]
[335158172,1723891934746,-500.0,0.00021917,2]
[335158173,1723891934798,-500.0,0.00021917,2]
[335158174,1723891934852,-500.0,0.00021917,2]
[335158175,1723891934905,-500.0,0.00021917,2]
[335158176,1723891934957,-389.0,0.0002219,2]
[335158177,1723891935010,-500.0,0.00022191,2]
[335158178,1723891935061,-500.0,0.00022191,2]
[335158179,1723891935113,-500.0,0.00022191,2]
[335158180,1723891935168,-500.0,0.00022191,2]
[335158181,1723891935219,-500.0,0.00022191,2]
[335158182,1723891935270,-500.0,0.00022465,2]
[335158183,1723891935319,-500.0,0.00022465,2]
[335158184,1723891935369,-500.0,0.00022465,2]
[335158185,1723891935429,-500.0,0.00022465,2]
[335158186,1723891935485,-500.0,0.00022465,2]
[335158187,1723891935535,-500.0,0.00022739,2]
[335158188,1723891935586,-500.0,0.00022739,2]
[335158189,1723891935636,-500.0,0.00022739,2]
[335158190,1723891935687,-500.0,0.00022739,2]
[335158191,1723891935738,-500.0,0.00022739,2]
[335158192,1723891935790,-500.0,0.00023013,2]
[335158193,1723891935956,-500.0,0.00023013,2]
[335158194,1723891936011,-500.0,0.00023013,2]
[335158195,1723891936063,-500.0,0.00023013,2]
[335158196,1723891936115,-500.0,0.00023013,2]
[335158197,1723891936170,-500.0,0.00023287,2]
[335158198,1723891936228,-635.12,0.00023287,2]
[335158199,1723891936280,-500.0,0.00023287,2]
[335158200,1723891936331,-500.0,0.00023287,2]
[335158201,1723891936388,-500.0,0.00023287,2]
[335158202,1723891936442,-500.0,0.00023561,2]
[335158203,1723891936498,-500.0,0.00023561,2]
[335158204,1723891936552,-500.0,0.00023561,2]
[335158205,1723891936605,-500.0,0.00023561,2]
[335158206,1723891936657,-500.0,0.00023835,2]
[335158207,1723891936711,-500.0,0.00023835,2]
[335158208,1723891936764,-401.23,0.00023835,2]
[335158209,1723891936815,-500.0,0.00023835,2]
[335158210,1723891936869,-500.0,0.00024109,2]
[335158211,1723891936922,-500.0,0.00024109,2]
[335158212,1723891936973,-500.0,0.00024109,2]
[335158213,1723891937026,-500.0,0.00024383,2]
[335158214,1723891937083,-500.0,0.00024383,2]
[335158215,1723891937137,-500.0,0.00024383,2]
[335158216,1723891937190,-500.0,0.00024657,2]
[335158217,1723891937244,-500.0,0.00024657,2]
[335158218,1723891937298,-500.0,0.00024657,2]
[335158219,1723891937355,-300.0,0.00024846,2]
[335158220,1723891937408,-882.69740535,0.00024847,2]
[335158221,1723891937460,-500.0,0.00024931,2]
[335158222,1723891937515,-500.0,0.00024931,2]
[335158223,1723891937568,-500.0,0.00024931,2]
[335158224,1723891937627,-500.0,0.00025205,2]
[335158225,1723891937690,-500.0,0.00025205,2]
[335158226,1723891937744,-500.0,0.00025205,2]
[335158227,1723891937800,-280.75,0.00025479,2]
[335158228,1723891937851,-500.0,0.00025479,2]
[335158229,1723891937905,-500.0,0.00025753,2]
[335158230,1723891937956,-500.0,0.00026027,2]
[335158231,1723891938006,-500.0,0.00026301,2]
[335158232,1723891938060,-500.0,0.00026575,2]
[335158233,1723891938111,-500.0,0.00026849,2]
[335158234,1723891938163,-245.72,0.00027112,3]
[335158235,1723891938218,-604.59,0.00027123,2]
[335158236,1723891938274,-611.55,0.00027123,2]
[335158237,1723891938330,-500.0,0.00027123,2]
[335158238,1723891938385,-463.24771648,0.00027123,2]
[335158239,1723891938442,-500.0,0.00027123,2]
[335158240,1723891938496,-1042.81,0.00027123,2]
[335158241,1723891938555,-500.0,0.00027123,2]
[335158242,1723891938610,-500.0,0.00027123,2]
[335158243,1723891938663,-638.63,0.00027123,2]
[335158244,1723891938718,-571.46,0.00027123,2]
[335158245,1723891938773,-578.52,0.00027123,2]
[335158246,1723891938826,-500.0,0.00027123,2]
[335158247,1723891938895,-583.41,0.00027123,2]
[335158248,1723891938950,-500.0,0.00027123,2]
[335158249,1723891939004,-622.62838619,0.00027123,2]
[335158250,1723891939059,-500.0,0.00027123,2]
[335158251,1723891939112,-707.23,0.00027123,2]
[335158252,1723891939166,-500.0,0.00027123,2]
[335158253,1723891939221,-773.58,0.00027123,2]
[335158254,1723891939276,-784.78,0.00027123,2]
[335158255,1723891939330,-584.85,0.00027123,2]
[335158256,1723891939389,-749.17,0.00027123,2]
[335158257,1723891939446,-785.89,0.00027123,2]
[335158258,1723891939506,-500.0,0.00027123,2]
[335158259,1723891939563,-2188.21,0.00027123,2]
[335158260,1723891939619,-500.0,0.00027123,2]
[335158261,1723891939674,-799.81,0.00027123,2]
[335158262,1723891939735,-500.0,0.00027123,2]
[335158263,1723891939790,-740.01,0.00027123,2]
[335158264,1723891939846,-409.04,0.00027123,2]
[335158265,1723891939901,-151.0,0.0002739,7]
[335158266,1723891939955,-604.59,0.00027397,2]
[335158267,1723891940008,-611.55,0.00027397,2]
[335158268,1723891940064,-500.0,0.00027397,2]
[335158269,1723891940116,-500.0,0.00027397,2]
[335158270,1723891940169,-1042.81,0.00027397,2]
[335158271,1723891940222,-500.0,0.00027397,2]
[335158272,1723891940274,-500.0,0.00027397,2]
[335158273,1723891940333,-638.63,0.00027397,2]
[335158274,1723891940393,-571.46,0.00027397,2]
[335158275,1723891940460,-578.52,0.00027397,2]
[335158276,1723891940517,-500.0,0.00027397,2]
[335158277,1723891940570,-583.41,0.00027397,2]
[335158278,1723891940622,-500.0,0.00027397,2]
[335158279,1723891940677,-500.0,0.00027397,2]
[335158280,1723891940742,-707.23,0.00027397,2]
[335158281,1723891940795,-500.0,0.00027397,2]
[335158282,1723891940849,-773.58,0.00027397,2]
[335158283,1723891940903,-784.78,0.00027397,2]
[335158284,1723891940961,-584.85,0.00027397,2]
[335158285,1723891941016,-749.17,0.00027397,2]
[335158286,1723891941069,-785.89,0.00027397,2]
[335158287,1723891941123,-763.85,0.00027397,2]
[335158288,1723891941175,-763.85,0.00027397,2]
[335158289,1723891941344,-763.85,0.00027397,2]
[335158290,1723891941400,-763.85,0.00027397,2]
[335158291,1723891941457,-763.85,0.00027397,2]
[335158292,1723891941513,-763.85,0.00027397,2]
[335158293,1723891941566,-763.85,0.00027397,2]
[335158294,1723891941618,-763.85,0.00027397,2]
[335158295,1723891941673,-763.85,0.00027397,2]
[335158296,1723891941727,-763.85,0.00027397,2]
[335158297,1723891941780,-763.85,0.00027397,2]
[335158298,1723891941835,-763.85,0.00027397,2]
[335158299,1723891941888,-763.85,0.00027397,2]
[335158300,1723891941945,-763.85,0.00027397,2]
[335158301,1723891942001,-763.85,0.00027397,2]
[335158302,1723891942058,-763.85,0.00027397,2]
[335158303,1723891942118,-763.85,0.00027397,2]
[335158304,1723891942173,-763.85,0.00027397,2]
[335158305,1723891942227,-763.85,0.00027397,2]
[335158306,1723891942280,-763.85,0.00027397,2]
[335158307,1723891942335,-763.85,0.00027397,2]
[335158308,1723891942392,-416.37,0.00027397,2]
[335158309,1723891942451,-2188.21,0.00027397,2]
[335158310,1723891942504,-500.0,0.00027397,2]
[335158311,1723891942560,-799.81,0.00027397,2]
[335158312,1723891942611,-177.4773689,0.00027397,2]
[335158313,1723891942664,-740.01,0.00027397,2]
[335158314,1723891942715,-202.43,0.000274,14]
[335158315,1723891942768,-267.28219318,0.0002755,2]
[335158316,1723891942819,-194.72220901,0.0002755,2]
[335158317,1723891942872,-288.90400302,0.0002755,2]
[335158318,1723891942924,-604.59,0.00027671,2]
[335158319,1723891942977,-611.55,0.00027671,2]
[335158320,1723891943030,-405.84219223,0.00027671,2]
[335158321,1723891943085,-500.0,0.00027671,2]
[335158322,1723891943138,-1042.81,0.00027671,2]
[335158323,1723891943195,-500.0,0.00027671,2]
[335158324,1723891943254,-289.74475033,0.00027671,2]
[335158325,1723891943322,-638.63,0.00027671,2]
[335158326,1723891943381,-571.46,0.00027671,2]
[335158327,1723891943447,-578.52,0.00027671,2]
[335158328,1723891943505,-500.0,0.00027671,2]
[335158329,1723891943565,-583.41,0.00027671,2]
[335158330,1723891943623,-500.0,0.00027671,2]
[335158331,1723891943681,-500.0,0.00027671,2]
[335158332,1723891943738,-707.23,0.00027671,2]
[335158333,1723891943796,-168.87483351,0.00027671,2]
[335158334,1723891943857,-773.58,0.00027671,2]
[335158335,1723891943912,-784.78,0.00027671,2]
[335158336,1723891943967,-584.85,0.00027671,2]
[335158337,1723891944023,-749.17,0.00027671,2]
[335158338,1723891944077,-785.89,0.00027671,2]
[335158339,1723891944130,-763.85,0.00027671,2]
[335158340,1723891944184,-505.56137669,0.00027671,2]
[335158341,1723891944239,-2188.21,0.00027671,2]
[335158342,1723891944292,-500.0,0.00027671,2]
[335158343,1723891944348,-799.81,0.00027671,2]
[335158344,1723891944404,-740.01,0.00027671,2]